bitfinex/quotes_BTCUSD_20250518
["timestamp","ask_amount","ask_price","bid_price","bid_amount"]
[1747594431827,0.03827676,104500.0,104490.0,0.24013222]
[1747594433243,0.02870739,104500.0,104490.0,0.24013222]
[1747594437620,0.002,104510.0,104500.0,0.22966357]
[1747594437821,0.02113627,104510.0,104500.0,0.22966357]
[1747594438027,0.002,104510.0,104500.0,0.22966357]
[1747594438225,0.002,104510.0,104500.0,0.28156357]
[1747594438544,0.01156763,104510.0,104500.0,0.29067811]
[1747594438746,0.00247318,104510.0,104500.0,0.29067811]
[1747594439126,0.01204081,104510.0,104500.0,0.29067811]
[1747594439327,0.00247318,104510.0,104500.0,0.49487811]
[1747594440349,0.00247318,104510.0,104500.0,0.51007558]
[1747594440840,0.00247318,104510.0,104500.0,0.51207558]
[1747594441261,0.00247318,104510.0,104500.0,0.52141715]
[1747594443721,0.00247318,104510.0,104500.0,0.53276598]
[1747594443952,0.00247318,104510.0,104500.0,0.73696598]
[1747594444649,0.00247318,104510.0,104500.0,0.83427538]
[1747594446430,0.00247318,104510.0,104500.0,0.83327538]
[1747594446833,0.00247318,104510.0,104500.0,0.83627538]
[1747594447059,0.00247318,104510.0,104500.0,0.83527538]
[1747594447258,0.00247318,104510.0,104500.0,0.83727538]
[1747594447663,0.00247318,104510.0,104500.0,0.63307538]
[1747594447864,0.00247318,104510.0,104500.0,0.83723538]
[1747594450205,0.00247318,104510.0,104500.0,1.19177623]
[1747594450387,0.00247318,104510.0,104500.0,1.1804274]
[1747594451007,0.00247318,104510.0,104500.0,1.1754274]
[1747594451403,0.00247318,104510.0,104500.0,1.1834274]
[1747594452232,0.00247318,104510.0,104500.0,1.1833874]
[1747594454589,0.002,104530.0,104520.0,0.22005246]
[1747594454799,0.002,104530.0,104520.0,1.12848271]
[1747594455639,0.002,104530.0,104520.0,1.13759725]
[1747594456927,0.002,104530.0,104520.0,1.15279472]
[1747594457500,0.002,104530.0,104520.0,1.15479472]
[1747594457695,0.002,104530.0,104520.0,1.15675472]
[1747594459753,0.002,104530.0,104520.0,1.16806683]
[1747594460539,0.002,104530.0,104520.0,0.99099976]
[1747594461539,0.002,104530.0,104520.0,1.01970129]
[1747594463296,0.002,104530.0,104520.0,1.00450382]
[1747594463734,0.002,104530.0,104520.0,0.78588297]
[1747594463971,0.23159749,104530.0,104520.0,0.00956736]
[1747594464139,0.23159749,104530.0,104520.0,0.62817292]
[1747594464140,0.22203086,104530.0,104520.0,0.62817292]
[1747594464344,0.2315973,104530.0,104520.0,0.62817282]
[1747594464503,0.22203086,104530.0,104520.0,0.64730671]
[1747594465035,0.02113188,104530.0,104520.0,0.64730671]
[1747594465637,0.03069814,104530.0,104520.0,0.64730671]
[1747594466189,0.03069814,104530.0,104520.0,0.44330671]
[1747594466355,0.23159712,104530.0,104520.0,0.62813282]
[1747594466561,0.23159712,104530.0,104520.0,0.63769982]
[1747594466768,0.23159712,104530.0,104520.0,0.22005292]
[1747594466966,0.22203077,104530.0,104520.0,0.64726681]
[1747594467135,0.02113188,104530.0,104520.0,0.64726681]
[1747594467377,0.03069814,104530.0,104520.0,0.64726681]
[1747594468690,0.02113188,104530.0,104520.0,0.64726681]
[1747594468948,0.03069814,104530.0,104520.0,0.64726681]
[1747594469712,0.02113188,104530.0,104520.0,0.64726681]
[1747594469918,0.03069814,104530.0,104520.0,0.64726681]
[1747594470114,0.02113188,104530.0,104520.0,0.64726681]
[1747594470522,0.03069814,104530.0,104520.0,0.64726681]
[1747594471136,0.02113188,104530.0,104520.0,0.64726681]
[1747594471291,0.03069814,104530.0,104520.0,0.64726681]
[1747594471492,0.02113188,104530.0,104520.0,0.64726681]
[1747594474184,0.02113179,104530.0,104520.0,0.67146681]
[1747594474632,0.0115658,104530.0,104520.0,0.67146681]
[1747594474919,0.02113179,104530.0,104520.0,0.67146681]
[1747594475127,0.002,104530.0,104520.0,0.79337621]
[1747594475337,0.002,104530.0,104520.0,1.14791706]
[1747594476391,0.022,104530.0,104520.0,1.14791706]
[1747594478271,0.022,104530.0,104520.0,1.15791706]
[1747594480165,0.022,104530.0,104520.0,1.15974232]
[1747594481417,0.022,104530.0,104520.0,1.57270232]
[1747594482052,0.022,104530.0,104520.0,1.56270232]
[1747594482438,0.022,104530.0,104520.0,1.56234232]
[1747594496890,0.022,104530.0,104520.0,1.57234232]
[1747594498423,0.002,104550.0,104540.0,0.22001036]
[1747594498623,0.002,104550.0,104540.0,0.74835976]
[1747594499398,0.002,104550.0,104540.0,0.72435976]
[1747594499560,0.003,104550.0,104540.0,0.72435976]
[1747594499889,0.01256406,104550.0,104540.0,0.72435976]
[1747594500518,0.003,104550.0,104540.0,0.74859637]
[1747594500695,0.01256406,104550.0,104540.0,0.74859637]
[1747594500895,0.004,104550.0,104540.0,0.74859637]
[1747594501676,0.0231284,104550.0,104540.0,0.74859637]
[1747594501896,0.004,104550.0,104540.0,0.74859637]
[1747594503673,0.004,104550.0,104540.0,0.80159637]
[1747594503829,0.004,104550.0,104540.0,0.80284001]
[1747594506626,0.01356397,104550.0,104540.0,0.74984001]
[1747594506791,0.004,104550.0,104540.0,0.74984001]
[1747594506999,0.01356406,104550.0,104540.0,0.74984001]
[1747594507414,0.004,104550.0,104540.0,0.34280001]
[1747594507626,0.004,104550.0,104540.0,0.74964001]
[1747594511918,0.01356406,104550.0,104540.0,0.54628001]
[1747594512263,0.26522516,104550.0,104540.0,0.02548025]
[1747594512472,0.26522516,104550.0,104540.0,0.4394059]
[1747594512678,0.26522516,104550.0,104540.0,0.6426859]
[1747594512888,0.07392913,104550.0,104540.0,0.67138185]
[1747594513094,0.07392877,104550.0,104540.0,0.67138185]
[1747594513296,0.08349274,104550.0,104540.0,0.67138185]
[1747594514747,0.03269274,104550.0,104540.0,0.67138185]
[1747594515251,0.03269274,104550.0,104540.0,0.65623397]
[1747594515460,0.05839274,104550.0,104540.0,0.65623397]
[1747594517433,0.04882822,104550.0,104540.0,0.65623397]
[1747594517589,0.01356397,104550.0,104540.0,0.65623397]
[1747594517766,0.02312813,104550.0,104540.0,0.65623397]
[1747594518398,0.01356397,104550.0,104540.0,0.68283397]
[1747594518612,0.02312813,104550.0,104540.0,0.68283397]
[1747594520798,0.03269247,104550.0,104540.0,0.68283397]
[1747594521245,0.03269247,104550.0,104540.0,0.65623397]
[1747594521914,0.03269238,104550.0,104540.0,0.65623397]
[1747594522143,0.004,104550.0,104540.0,0.68283397]
[1747594522382,0.004,104550.0,104540.0,0.70943397]
[1747594523880,0.004,104550.0,104540.0,0.82189125]
[1747594524112,0.004,104550.0,104540.0,1.16189125]
[1747594524881,0.004,104550.0,104540.0,1.1764321]
[1747594525886,0.003,104550.0,104540.0,1.1764321]
[1747594526090,0.002,104550.0,104540.0,1.1764321]
[1747594526555,0.002,104550.0,104540.0,1.16128422]
[1747594526768,0.002,104550.0,104540.0,1.16228422]
[1747594527377,0.002,104550.0,104540.0,1.17632572]
[1747594530941,0.002,104550.0,104540.0,1.17732572]
[1747594531296,0.1472094,104550.0,104530.0,0.03049475]
[1747594531500,1.12579991,104540.0,104530.0,0.03049475]
[1747594531747,1.15492229,104540.0,104530.0,0.03049475]
[1747594531966,1.18596512,104540.0,104530.0,0.03049475]
[1747594532169,1.12579991,104540.0,104530.0,0.03049475]
[1747594532554,0.94909467,104540.0,104530.0,0.03249475]
[1747594532960,0.94909467,104540.0,104530.0,0.03049475]
[1747594533164,0.94909467,104540.0,104530.0,0.003]
[1747594533364,0.25838537,104520.0,104510.0,0.02]
[1747594533572,0.25838537,104520.0,104510.0,0.02014152]
[1747594533780,0.35569477,104520.0,104510.0,0.02014152]
[1747594534554,0.35669477,104520.0,104510.0,0.02014152]
[1747594536386,0.20191774,104520.0,104510.0,0.02014152]
[1747594536589,0.22105218,104520.0,104510.0,0.02014152]
[1747594536796,0.001,104520.0,104510.0,0.24021504]
[1747594536999,0.02970144,104520.0,104510.0,0.03927835]
[1747594537193,0.02970134,104520.0,104510.0,0.23064759]
[1747594537369,0.02970116,104520.0,104510.0,0.25935177]
[1747594537578,0.03926833,104520.0,104510.0,0.25935177]
[1747594537990,0.03926833,104520.0,104510.0,0.25935122]
[1747594538228,0.02970097,104520.0,104510.0,0.25935122]
[1747594538449,0.02970107,104520.0,104510.0,0.1018387]
[1747594538662,0.23061954,104520.0,104510.0,0.50767925]
[1747594538910,0.21050496,104510.0,104500.0,0.002]
[1747594539178,0.25920551,104510.0,104500.0,0.00204718]
[1747594539408,0.5287617,104510.0,104500.0,0.00204718]
[1747594539627,0.8687617,104510.0,104500.0,0.00204718]
[1747594540067,0.59920551,104510.0,104500.0,0.00204718]
[1747594540272,1.05911558,104510.0,104500.0,0.00204718]
[1747594540482,0.9680711,104510.0,104500.0,0.00204718]
[1747594540689,0.9660711,104510.0,104500.0,0.00204718]
[1747594541049,0.9690711,104510.0,104500.0,0.00204718]
[1747594541254,0.98361195,104510.0,104500.0,0.00304718]
[1747594541458,1.20997195,104510.0,104500.0,0.00304718]
[1747594541688,1.20997195,104510.0,104500.0,0.00204718]
[1747594541866,1.21297195,104510.0,104500.0,0.00204718]
[1747594543274,1.22728372,104510.0,104500.0,0.00204718]
[1747594543697,0.94318668,104510.0,104500.0,0.00204718]
[1747594543907,0.98638287,104510.0,104500.0,0.00204718]
[1747594544644,0.98634287,104510.0,104500.0,0.00204718]
[1747594544849,0.71678668,104510.0,104500.0,0.00204718]
[1747594545680,1.67414287,104510.0,104500.0,0.00204718]
[1747594547169,1.40458668,104510.0,104500.0,0.00204718]
[1747594547685,1.37988668,104510.0,104500.0,0.00204718]
[1747594548922,1.67414287,104510.0,104500.0,0.00204718]
[1747594549552,1.40458668,104510.0,104500.0,0.00204718]
[1747594550608,1.67414287,104510.0,104500.0,0.00204718]
[1747594556384,1.77145227,104510.0,104500.0,0.00204718]
[1747594556811,1.8481872,104510.0,104500.0,0.00204718]
[1747594557021,1.49030997,104500.0,104490.0,0.03789708]
[1747594557237,1.49030997,104500.0,104480.0,0.102]
[1747594557238,0.58887598,104490.0,104480.0,0.102]
[1747594557452,1.32260716,104490.0,104480.0,0.102]
[1747594558590,1.05305097,104490.0,104480.0,0.102]
[1747594558817,0.95574157,104490.0,104480.0,0.102]
[1747594559455,0.68618538,104490.0,104480.0,0.102]
[1747594559677,0.67108538,104490.0,104480.0,0.102]
[1747594560312,0.94064157,104490.0,104480.0,0.102]
[1747594560734,1.65224157,104490.0,104480.0,0.102]
[1747594560950,2.03364801,104490.0,104480.0,0.102]
[1747594562246,1.66678242,104490.0,104480.0,0.102]
[1747594564968,1.14559849,104470.0,104460.0,0.002]
[1747594565200,1.86211729,104470.0,104460.0,0.002]
[1747594565938,1.88864029,104470.0,104460.0,0.002]
[1747594566409,1.89364029,104470.0,104460.0,0.00247318]
[1747594566635,1.89364029,104470.0,104460.0,0.00047318]
[1747594566831,1.89864029,104470.0,104460.0,0.00047318]
[1747594567071,1.80133089,104470.0,104460.0,0.00047318]
[1747594568224,1.81587174,104470.0,104460.0,0.00047318]
[1747594568644,1.80587174,104470.0,104460.0,0.00047318]
[1747594569270,6.85587174,104470.0,104460.0,0.00047318]
[1747594571748,6.85087174,104470.0,104460.0,0.00047318]
[1747594571966,6.84587174,104470.0,104460.0,0.00047318]
[1747594572169,6.95318114,104470.0,104460.0,0.00147318]
[1747594572803,1.5679503,104450.0,104440.0,0.002]
[1747594573016,1.6652597,104450.0,104440.0,0.00204751]
[1747594573691,1.7625691,104450.0,104440.0,0.00204751]
[1747594574110,1.77667741,104450.0,104440.0,0.00204751]
[1747594576234,1.77767741,104450.0,104440.0,0.00204751]
[1747594578776,1.12009159,104450.0,104440.0,0.00204751]
[1747594579196,1.34765159,104450.0,104440.0,0.00204751]
[1747594583580,1.32455159,104450.0,104440.0,0.00204751]
[1747594583792,1.09699159,104450.0,104440.0,0.00204751]
[1747594583995,0.706326,104450.0,104440.0,0.02564751]
[1747594584336,0.932006,104450.0,104440.0,0.02564751]
[1747594584559,0.88872415,104450.0,104440.0,0.05064751]
[1747594586830,0.88872415,104450.0,104440.0,0.04977869]
[1747594589655,1.0096856,104450.0,104440.0,0.00117869]
[1747594589889,1.2353656,104450.0,104440.0,0.00117869]
[1747594590206,1.24990645,104450.0,104440.0,0.00117869]
[1747594594661,0.98035026,104450.0,104440.0,0.00117869]
[1747594594904,0.903265,104450.0,104440.0,0.02527869]
[1747594595132,0.677585,104450.0,104440.0,0.02527869]
[1747594596084,0.94714119,104450.0,104440.0,0.02527869]
[1747594596246,0.677585,104450.0,104440.0,0.02527869]
[1747594596459,0.94714119,104450.0,104440.0,0.02527869]
[1747594596660,0.99714119,104450.0,104440.0,0.02527869]
[1747594597129,1.0281669,104450.0,104440.0,0.00117869]
[1747594598051,0.94714119,104450.0,104440.0,0.00117869]
[1747594598468,0.677585,104450.0,104440.0,0.00117869]
[1747594598667,0.677585,104450.0,104440.0,0.05027869]
[1747594600233,0.677585,104450.0,104440.0,0.00117869]
[1747594601341,0.903265,104450.0,104440.0,0.05047869]
[1747594601513,0.677585,104450.0,104440.0,0.05047869]
[1747594601961,0.66304415,104450.0,104440.0,0.05047869]
[1747594607392,0.71304415,104450.0,104440.0,0.05047869]
[1747594610502,1.42976034,104450.0,104440.0,0.00117869]
[1747594611170,1.16020415,104450.0,104440.0,0.00117869]
[1747594612802,0.01915423,104410.0,104400.0,0.60805021]
[1747594613229,0.00957698,104410.0,104400.0,0.60805021]
[1747594613459,0.00957698,104410.0,104400.0,0.17006259]
[1747594613654,0.00957698,104410.0,104400.0,0.17197795]
[1747594614201,0.00971873,104410.0,104400.0,0.17197795]
[1747594614318,0.01071873,104410.0,104400.0,0.17797795]
[1747594614530,0.02029589,104410.0,104400.0,0.17797795]
[1747594615164,0.02129589,104410.0,104400.0,0.16782167]
[1747594615970,0.02129589,104410.0,104400.0,0.21632167]
[1747594616166,0.03087314,104410.0,104390.0,0.64594886]
[1747594616371,0.03087314,104410.0,104400.0,0.00191537]
[1747594616800,0.03087314,104410.0,104400.0,0.19345513]
[1747594616975,0.02887314,104410.0,104400.0,0.20303294]
[1747594617173,0.02887314,104410.0,104400.0,0.20111757]
[1747594617396,0.02987314,104410.0,104400.0,0.20111757]
[1747594617932,0.02129589,104410.0,104400.0,0.21669547]
[1747594618366,0.02229589,104410.0,104400.0,0.21669547]
[1747594618844,0.02129589,104410.0,104400.0,0.21669547]
[1747594619178,0.02229589,104410.0,104400.0,0.24409547]
[1747594619396,0.02229589,104410.0,104400.0,0.26919547]
[1747594622235,0.02229589,104410.0,104400.0,0.27882273]
[1747594622497,0.02229589,104410.0,104400.0,0.27882309]
[1747594623124,0.03187333,104410.0,104400.0,0.27882309]
[1747594623326,0.02229589,104410.0,104400.0,0.27882309]
[1747594623528,0.03187324,104410.0,104400.0,0.27882309]
[1747594623729,0.02229589,104410.0,104400.0,0.27882309]
[1747594623929,0.22342586,104410.0,104400.0,0.06807845]
[1747594624319,0.21384888,104410.0,104400.0,0.0585]
[1747594625304,0.20427172,104410.0,104400.0,0.0585]
[1747594625706,0.20427172,104410.0,104400.0,0.06807854]
[1747594625886,0.21384925,104410.0,104400.0,0.26922768]
[1747594626086,0.00314175,104410.0,104400.0,0.28838385]
[1747594626321,0.02229598,104410.0,104400.0,0.28838385]
[1747594626549,0.01271873,104410.0,104400.0,0.28838385]
[1747594626769,0.01271864,104410.0,104400.0,0.28838385]
[1747594627174,0.00314175,104410.0,104400.0,0.28838385]
[1747594627381,0.02229562,104410.0,104400.0,0.28838385]
[1747594628116,0.03187287,104410.0,104400.0,0.28838385]
[1747594628440,0.2234254,104410.0,104400.0,0.27880595]
[1747594628650,0.24258028,104410.0,104400.0,0.50730403]
[1747594628879,0.24258028,104410.0,104400.0,0.5320383]
[1747594629085,0.23300275,104410.0,104400.0,0.53203766]
[1747594629746,0.04145022,104410.0,104400.0,0.53203766]
[1747594630204,0.04145022,104410.0,104400.0,0.31311766]
[1747594630408,0.05102775,104410.0,104400.0,0.31311766]
[1747594630616,0.04145022,104410.0,104400.0,0.31311766]
[1747594632188,0.05102766,104410.0,104400.0,0.31311766]
[1747594633443,0.04145022,104410.0,104400.0,0.31311766]
[1747594634857,0.04145022,104410.0,104400.0,0.31235766]
[1747594635446,0.05102766,104410.0,104400.0,0.31235766]
[1747594635646,0.23300339,104410.0,104400.0,0.5038636]
[1747594635889,0.23300339,104410.0,104400.0,0.5134415]
[1747594636255,0.23300339,104410.0,104400.0,0.52301949]
[1747594636463,0.23300339,104410.0,104400.0,0.51344159]
[1747594636665,0.23300339,104410.0,104400.0,0.52301949]
[1747594637112,0.23300339,104410.0,104400.0,0.51344159]
[1747594637507,0.23300339,104410.0,104400.0,0.52301949]
[1747594637759,0.23300339,104410.0,104400.0,0.51344159]
[1747594637963,0.22342595,104410.0,104400.0,0.52301949]
[1747594639750,0.02229607,104410.0,104400.0,0.52301949]
[1747594640166,0.03187297,104410.0,104400.0,0.52301949]
[1747594642182,0.04145041,104410.0,104400.0,0.52301949]
[1747594642320,0.23300294,104410.0,104400.0,0.5038636]
[1747594642534,0.23300294,104410.0,104400.0,0.4900415]
[1747594642945,0.23300294,104410.0,104400.0,0.51644159]
[1747594643154,0.23300294,104410.0,104400.0,0.52601949]
[1747594643646,0.2234255,104410.0,104400.0,0.52601949]
[1747594644541,0.03187297,104410.0,104400.0,0.52601949]
[1747594644948,0.23300294,104410.0,104400.0,0.46494159]
[1747594645195,0.04145041,104410.0,104400.0,0.47451949]
[1747594646156,0.04145041,104410.0,104400.0,0.25427949]
[1747594646561,0.03187297,104410.0,104400.0,0.24470159]
[1747594646890,0.23300303,104410.0,104400.0,0.23512378]
[1747594647687,0.22342623,104410.0,104400.0,0.23512378]
[1747594648237,0.25247181,104410.0,104400.0,0.03397473]
[1747594648588,0.25247181,104410.0,104400.0,0.01881845]
[1747594650642,0.25247181,104410.0,104400.0,0.21996769]
[1747594650842,0.20427181,104410.0,104400.0,0.22954595]
[1747594652957,0.09514781,104410.0,104400.0,0.22954595]
[1747594653982,0.11430268,104410.0,104400.0,0.22954595]
[1747594654407,0.11430268,104410.0,104400.0,0.23912412]
[1747594655886,0.11430268,104410.0,104400.0,0.22954595]
[1747594656085,0.15362543,104410.0,104400.0,0.00924]
[1747594656232,0.1440479,104410.0,104400.0,0.00924]
[1747594656495,0.1440479,104410.0,104400.0,0.01881854]
[1747594656868,0.1440479,104410.0,104400.0,0.00924]
[1747594657080,0.23177968,104410.0,104400.0,0.00924]
[1747594657460,0.57177968,104410.0,104400.0,0.00924]
[1747594660988,0.57177968,104410.0,104400.0,0.00524]
[1747594661141,0.03831618,104390.0,104380.0,0.23192639]
[1747594662159,0.22990541,104390.0,104380.0,0.23192639]
[1747594662580,0.23090541,104390.0,104380.0,0.22834657]
[1747594663040,0.23090541,104390.0,104380.0,0.23750948]
[1747594663162,0.23090541,104390.0,104380.0,0.2470893]
[1747594663359,0.23190541,104390.0,104380.0,0.24350948]
[1747594663939,0.23190541,104390.0,104380.0,0.2790893]
[1747594664156,0.03073672,104390.0,104380.0,0.2790893]
[1747594664375,0.02115744,104390.0,104380.0,0.31186903]
[1747594664780,0.01157863,104390.0,104380.0,0.31186903]
[1747594664981,0.002,104390.0,104380.0,0.31186903]
[1747594665180,0.01157872,104390.0,104380.0,0.31186903]
[1747594666242,0.02115763,104390.0,104380.0,0.31186903]
[1747594666638,0.02115763,104390.0,104380.0,0.28666903]
[1747594666858,0.03073663,104390.0,104380.0,0.48146903]
[1747594668674,0.02115763,104390.0,104380.0,0.50546903]
[1747594668881,0.02115763,104390.0,104380.0,0.53066903]
[1747594669082,0.03073672,104390.0,104380.0,0.53066903]
[1747594671382,0.0403159,104390.0,104380.0,0.53066903]
[1747594671615,0.04989517,104390.0,104380.0,0.50546903]
[1747594671845,0.04989517,104390.0,104380.0,0.26266903]
[1747594672679,0.03073663,104390.0,104380.0,0.31296903]
[1747594672953,0.04031581,104390.0,104380.0,0.31296903]
[1747594673588,0.04031581,104390.0,104380.0,0.32441562]
[1747594676060,0.002,104390.0,104380.0,0.43626587]
[1747594676482,0.04031581,104390.0,104380.0,0.1822189]
[1747594676707,0.04031572,104390.0,104380.0,0.14707518]
[1747594676911,0.24148431,104390.0,104380.0,0.14707518]
[1747594677125,0.22232723,104390.0,104380.0,0.26592578]
[1747594677333,0.22232723,104390.0,104380.0,0.48204578]
[1747594677541,0.27332723,104390.0,104380.0,0.48204578]
[1747594678559,0.27332723,104390.0,104380.0,0.26592578]
[1747594679169,0.26374805,104390.0,104380.0,0.26592578]
[1747594679958,0.25416869,104390.0,104380.0,0.26592578]
[1747594680180,0.25416869,104390.0,104380.0,0.02316291]
[1747594681059,0.35147809,104390.0,104380.0,0.02316291]
[1747594681724,0.35147809,104390.0,104380.0,0.014]
[1747594681938,0.35047809,104390.0,104380.0,0.008]
[1747594682148,0.36499521,104390.0,104380.0,0.008]
[1747594682366,0.36599521,104390.0,104380.0,0.013]
[1747594682590,0.36499521,104390.0,104380.0,0.007]
[1747594682819,0.36499521,104390.0,104380.0,0.005]
[1747594683280,0.36499521,104390.0,104380.0,0.008]
[1747594684387,0.70499521,104390.0,104380.0,0.008]
[1747594685156,0.73452321,104390.0,104380.0,0.008]
[1747594686147,0.7633339,104390.0,104380.0,0.008]
[1747594686571,1.4511339,104390.0,104380.0,0.008]
[1747594687252,1.76433729,104390.0,104380.0,0.008]
[1747594687474,1.76433729,104390.0,104380.0,0.00033908]
[1747594687895,0.21078788,104370.0,104360.0,0.00206]
[1747594688115,1.63320797,104370.0,104360.0,0.00206]
[1747594688320,1.66273597,104370.0,104360.0,0.00206]
[1747594688751,1.93296012,104370.0,104360.0,0.00206]
[1747594688963,1.93396012,104370.0,104360.0,0.00406]
[1747594689170,1.93396012,104370.0,104360.0,0.00520175]
[1747594690864,2.03126952,104370.0,104360.0,0.00520175]
[1747594691068,1.94349417,104370.0,104360.0,0.00520175]
[1747594691481,1.64374202,104370.0,104360.0,0.00520175]
[1747594691702,1.64274202,104370.0,104360.0,0.00220175]
[1747594692140,1.61893133,104370.0,104360.0,0.00420175]
[1747594692732,0.93113133,104370.0,104360.0,0.00420175]
[1747594693923,0.93117133,104370.0,104360.0,0.00420175]
[1747594694298,0.70539728,104370.0,104360.0,0.00420175]
[1747594694557,0.31309728,104370.0,104360.0,0.00420175]
[1747594694766,0.005,104370.0,104360.0,0.22144605]
[1747594694947,0.22536872,104370.0,104360.0,0.05400175]
[1747594695347,0.21578807,104370.0,104360.0,0.05400175]
[1747594695923,0.21578807,104370.0,104360.0,0.02980175]
[1747594696370,0.20620714,104370.0,104360.0,0.02980175]
[1747594697638,0.20620714,104370.0,104360.0,0.00420175]
[1747594698377,0.20620714,104370.0,104360.0,0.02980175]
[1747594698971,0.20620714,104370.0,104360.0,0.00420175]
[1747594700412,0.20620714,104370.0,104360.0,0.03000175]
[1747594701376,0.20620714,104370.0,104360.0,0.00420175]
[1747594702659,0.20620714,104370.0,104360.0,0.03000175]
[1747594704038,0.20620714,104370.0,104360.0,0.00420175]
[1747594704509,0.19662594,104370.0,104360.0,0.00420175]
[1747594704709,0.19662594,104370.0,104360.0,0.03030175]
[1747594705254,0.19662594,104370.0,104360.0,0.00420175]
[1747594706056,0.19662594,104370.0,104360.0,0.03030175]
[1747594706280,0.22536936,104370.0,104360.0,0.03030175]
[1747594706497,0.21578843,104370.0,104360.0,0.05630175]
[1747594707342,0.21578843,104370.0,104360.0,0.00420175]
[1747594707558,0.26678843,104370.0,104360.0,0.00420175]
[1747594707774,0.24058843,104370.0,104360.0,0.01335286]
[1747594709268,0.21578843,104370.0,104360.0,0.01335286]
[1747594711050,0.36409783,104370.0,104360.0,0.01335286]
[1747594712267,0.36409783,104370.0,104360.0,0.00420175]
[1747594716026,0.19662594,104370.0,104360.0,0.00420175]
[1747594716247,0.2062065,104370.0,104360.0,0.25752826]
[1747594716465,0.19662594,104370.0,104360.0,0.25752826]
[1747594716678,0.20620641,104370.0,104360.0,0.28585977]
[1747594716887,0.19662594,104370.0,104360.0,0.29544134]
[1747594717104,0.21578788,104370.0,104360.0,0.22336948]
[1747594717349,0.21578788,104370.0,104360.0,0.01336948]
[1747594723058,0.2157877,104370.0,104360.0,0.06276948]
[1747594723279,0.005,104370.0,104360.0,0.26399599]
[1747594723420,0.21578715,104370.0,104360.0,0.27357811]
[1747594723641,0.21578715,104370.0,104360.0,0.29274188]
[1747594723834,0.21578715,104370.0,104360.0,0.28316004]
[1747594724019,0.21578715,104370.0,104360.0,0.29460663]
[1747594724217,0.22536808,104370.0,104360.0,0.29460673]
[1747594725811,0.21578715,104370.0,104360.0,0.29460673]
[1747594726114,0.22536808,104370.0,104360.0,0.29460673]
[1747594726474,0.22536808,104370.0,104360.0,0.2850247]
[1747594727100,0.20620641,104370.0,104360.0,0.31934457]
[1747594727305,0.005,104370.0,104360.0,0.30976291]
[1747594727538,0.005,104370.0,104360.0,0.32892632]
[1747594727741,0.2062065,104370.0,104360.0,0.31934475]
[1747594727942,0.2062065,104370.0,104360.0,0.3289265]
[1747594728183,0.2062065,104370.0,104360.0,0.32892595]
[1747594728407,0.005,104370.0,104360.0,0.76623526]
[1747594729386,0.005,104370.0,104360.0,0.76523526]
[1747594729387,0.003,104370.0,104360.0,0.76523526]
[1747594729872,0.001,104370.0,104360.0,0.76523526]
[1747594730130,0.001,104370.0,104360.0,0.76623526]
[1747594730327,0.001,104370.0,104360.0,0.75478867]
[1747594735899,0.001,104370.0,104360.0,0.76932952]
[1747594736105,0.24370589,104400.0,104390.0,0.21074805]
[1747594736106,0.21072734,104400.0,104390.0,0.21074805]
[1747594736331,0.22030533,104400.0,104390.0,0.45337946]
[1747594736540,0.22030533,104400.0,104390.0,0.46295882]
[1747594736746,0.22228445,104410.0,104390.0,0.68287304]
[1747594736948,0.24143878,104410.0,104390.0,0.70637313]
[1747594737163,0.24143878,104410.0,104390.0,0.69679441]
[1747594737363,0.23186143,104410.0,104390.0,0.70737203]
[1747594737566,0.002,104400.0,104390.0,0.6977934]
[1747594738276,0.002,104400.0,104390.0,0.7951028]
[1747594738493,0.002,104400.0,104390.0,1.17063694]
[1747594739131,0.002,104410.0,104400.0,0.2692054]
[1747594739340,0.002,104410.0,104400.0,0.3665148]
[1747594739545,0.005,104410.0,104400.0,0.3665148]
[1747594739758,0.005,104410.0,104400.0,0.37568253]
[1747594740432,0.002,104410.0,104400.0,0.37568253]
[1747594740634,0.003,104410.0,104400.0,0.37568253]
[1747594741518,0.003,104410.0,104400.0,0.73022338]
[1747594741709,0.002,104430.0,104420.0,0.27096319]
[1747594742059,0.002,104430.0,104420.0,0.79769344]
[1747594742279,0.002,104430.0,104420.0,1.13769344]
[1747594743455,0.002,104430.0,104420.0,0.93025344]
[1747594743713,0.002,104430.0,104420.0,1.14686117]
[1747594743907,0.003,104430.0,104420.0,1.14686117]
[1747594744276,0.00304734,104430.0,104420.0,1.14686117]
[1747594745505,0.00304734,104430.0,104420.0,1.15827028]
[1747594749253,0.00304734,104430.0,104420.0,1.14686117]
[1747594749509,0.00304734,104430.0,104420.0,0.93942117]
[1747594749642,0.00304734,104430.0,104420.0,1.14678117]
[1747594750295,0.00304734,104430.0,104420.0,0.73198117]
[1747594750503,0.00304734,104430.0,104420.0,1.14670117]
[1747594754372,0.00304734,104430.0,104420.0,1.56010117]
[1747594754975,0.00204734,104430.0,104420.0,1.56010117]
[1747594755154,0.00204734,104430.0,104420.0,1.57151028]
[1747594755380,0.00204734,104430.0,104420.0,1.58151028]
[1747594755585,0.00204734,104430.0,104420.0,1.59151028]
[1747594755783,0.00304734,104430.0,104420.0,1.59451028]
[1747594756036,0.00304734,104430.0,104420.0,1.59651028]
[1747594756653,0.00304734,104430.0,104420.0,1.59451028]
[1747594756853,0.00404734,104430.0,104420.0,1.60151028]
[1747594757209,0.00404734,104430.0,104420.0,1.60313551]
[1747594757608,0.00304734,104430.0,104420.0,1.60013551]
[1747594757814,0.002,104450.0,104440.0,0.60742102]
[1747594758118,0.00204734,104450.0,104440.0,0.91201042]
[1747594758318,0.00204734,104450.0,104440.0,0.92117815]
[1747594758536,0.00204734,104450.0,104440.0,0.935719]
[1747594759251,0.00304734,104450.0,104440.0,0.939719]
[1747594759479,0.00404734,104450.0,104440.0,0.942719]
[1747594759711,0.00404734,104450.0,104440.0,0.952719]
[1747594759940,0.00404734,104450.0,104440.0,1.374719]
[1747594761467,0.00404734,104450.0,104440.0,1.38470543]
[1747594763834,0.00404734,104450.0,104440.0,1.37470543]
[1747594764077,0.00404734,104450.0,104440.0,1.16742543]
[1747594764288,0.00404734,104450.0,104440.0,1.58194543]
[1747594764630,0.00404734,104450.0,104440.0,1.16994543]
[1747594766952,0.3137206,104470.0,104460.0,0.56017913]
[1747594767176,0.33756794,104470.0,104460.0,0.76733913]
[1747594767410,0.33756794,104470.0,104460.0,0.97445913]
[1747594767978,0.33856794,104470.0,104460.0,0.98403153]
[1747594768173,0.06081873,104470.0,104460.0,0.98403153]
[1747594768587,0.06081873,104470.0,104460.0,0.99319926]
[1747594769237,0.05124734,104470.0,104460.0,0.99319926]
[1747594769411,0.06081873,104470.0,104460.0,0.99319926]
[1747594770019,0.05124734,104470.0,104460.0,1.00837616]
[1747594770862,0.00304734,104470.0,104460.0,1.10568556]
[1747594771983,0.00304734,104470.0,104460.0,1.14372641]